fUST/lending_fUST_20250627
["ID","MTS","AMOUNT","RATE_DAILY","PERIOD"]
[368003226,1750990239777,-434.89195285,0.00019435,2]
[368003227,1750990239787,-462.0327581,0.00019435,2]
[368003228,1750990239796,-468.4811183,0.00019435,2]
[368003229,1750990239808,-460.55414404,0.00019435,2]
[368003230,1750990239822,-466.70780542,0.00019435,2]
[368003231,1750990239836,-464.0722036,0.00019435,2]
[368003232,1750990239850,-460.0,0.00019435,2]
[368003233,1750990239863,-460.0,0.00019435,2]
[368003234,1750990239874,-466.81379138,0.00019435,2]
[368003235,1750990239887,-462.55523148,0.00019435,2]
[368003236,1750990239899,-466.19325996,0.00019435,2]
[368003237,1750990239912,-287.58344971,0.00019435,2]
[368003238,1750990239925,-460.0,0.00019435,2]
[368003239,1750990239938,-507.81516979,0.00019435,2]
[368003240,1750990239950,-460.0,0.00019435,2]
[368003241,1750990239963,-460.0,0.00019435,2]
[368003242,1750990239977,-460.0,0.00019435,2]
[368003243,1750990239993,-474.53,0.00019435,2]
[368003244,1750990240004,-460.0,0.00019435,2]
[368003245,1750990240016,-393.48,0.00019441,3]
[368003246,1750990240028,-769.4,0.00019442,3]
[368003247,1750990240039,-384.7,0.00019442,3]
[368003248,1750990240052,-192.35,0.00019442,3]
[368003249,1750990240066,-577.07,0.00019442,3]
[368003250,1750990240077,-931.11,0.0001945,2]
[368003251,1750990240090,-931.11,0.0001945,2]
[368003252,1750990240100,-500.0,0.00019451,2]
[368003253,1750990240110,-460.0,0.00019451,2]
[368003254,1750990240122,-460.0,0.00019451,2]
[368003255,1750990240133,-460.0,0.00019451,2]
[368003256,1750990240146,-460.0,0.00019451,2]
[368003257,1750990240157,-460.0,0.00019451,2]
[368003258,1750990240170,-506.51804101,0.00019451,2]
[368003260,1750990240183,-492.84871709,0.00019451,2]
[368003262,1750990240197,-460.0,0.00019451,2]
[368003265,1750990240212,-460.0,0.00019451,2]
[368003267,1750990240226,-463.49886774,0.00019451,2]
[368003269,1750990240238,-460.0,0.00019451,2]
[368003271,1750990240249,-460.0,0.00019451,2]
[368003273,1750990240260,-569.23,0.00019451,2]
[368003276,1750990240270,-543.97,0.00019451,2]
[368003278,1750990240282,-931.11,0.00019451,2]
[368003280,1750990240296,-1476.7,0.00019451,2]
[368003282,1750990240308,-1539.19,0.00019451,2]
[368003283,1750990240320,-460.0,0.00019451,2]
[368003284,1750990240331,-4068.66,0.00019451,2]
[368003285,1750990240342,-460.0,0.00019451,2]
[368003286,1750990240354,-1056.28,0.00019451,2]
[368003287,1750990240366,-1359.78,0.00019451,2]
[368003288,1750990240379,-525.87,0.00019451,2]
[368003289,1750990240390,-460.0,0.00019451,2]
[368003290,1750990240400,-460.0,0.00019452,2]
[368003291,1750990240411,-460.0,0.00019452,2]
[368003292,1750990240422,-440.0,0.00019452,2]
[368003293,1750990240433,-460.0,0.00019452,2]
[368003294,1750990240444,-460.0,0.00019452,2]
[368003295,1750990240454,-460.0,0.00019452,2]
[368003296,1750990240465,-460.0,0.00019452,2]
[368003297,1750990240476,-460.0,0.00019452,2]
[368003298,1750990240488,-460.0,0.00019452,2]
[368003299,1750990240499,-460.0,0.00019452,2]
[368003300,1750990240510,-431.79363285,0.00019452,2]
[368003301,1750990240520,-460.0,0.00019452,2]
[368003302,1750990240531,-460.0,0.00019452,2]
[368003303,1750990240542,-460.0,0.00019452,2]
[368003304,1750990240554,-463.81311764,0.00019452,2]
[368003305,1750990240564,-460.0,0.00019452,2]
[368003306,1750990240576,-460.0,0.00019452,2]
[368003307,1750990240587,-460.0,0.00019452,2]
[368003308,1750990240598,-460.0,0.00019452,2]
[368003309,1750990240609,-460.0,0.00019452,2]
[368003310,1750990240619,-460.0,0.00019452,2]
[368003311,1750990240630,-460.0,0.00019452,2]
[368003312,1750990240641,-676.69,0.00019452,2]
[368003313,1750990240652,-619.16,0.00019452,2]
[368003314,1750990240663,-460.0,0.00019452,2]
[368003315,1750990240674,-460.0,0.00019452,2]
[368003316,1750990240685,-472.23662174,0.00019452,2]
[368003317,1750990240697,-460.0,0.00019452,2]
[368003318,1750990240708,-462.52718163,0.00019452,2]
[368003319,1750990240719,-460.0,0.00019452,2]
[368003320,1750990240731,-505.43,0.00019452,2]
[368003321,1750990240742,-215.07603972,0.00019452,2]
[368003322,1750990240753,-474.1359771,0.00019452,2]
[368003323,1750990240765,-460.0,0.00019452,2]
[368003324,1750990240776,-496.88,0.00019452,2]
[368003325,1750990240788,-400.01842809,0.00019452,2]
[368003326,1750990240799,-460.0,0.00019452,2]
[368003327,1750990240810,-466.93409376,0.00019452,2]
[368003328,1750990240822,-467.92752161,0.00019452,2]
[368003329,1750990240833,-460.0,0.00019452,2]
[368003330,1750990240843,-460.0,0.00019452,2]
[368003331,1750990240854,-460.77768797,0.00019452,2]
[368003332,1750990240866,-701.54,0.00019452,2]
[368003333,1750990240877,-460.0,0.00019452,2]
[368003334,1750990240888,-460.0,0.00019452,2]
[368003335,1750990240900,-460.0,0.00019452,2]
[368003336,1750990240910,-467.633471,0.00019452,2]
[368003337,1750990240921,-460.0,0.00019452,2]
[368003338,1750990240931,-460.0,0.00019452,2]
[368003339,1750990240943,-460.0,0.00019452,2]
[368003340,1750990240955,-460.0,0.00019452,2]
[368003341,1750990240966,-460.0,0.00019452,2]
[368003342,1750990240977,-460.0,0.00019452,2]
[368003343,1750990240988,-463.19432754,0.00019452,2]
[368003344,1750990241001,-462.76952307,0.00019452,2]
[368003345,1750990241012,-460.0,0.00019452,2]
[368003346,1750990241023,-460.0,0.00019452,2]
[368003347,1750990241035,-460.0,0.00019452,2]
[368003348,1750990241046,-467.72558827,0.00019452,2]
[368003349,1750990241056,-460.0,0.00019452,2]
[368003350,1750990241068,-460.0,0.00019452,2]
[368003351,1750990241079,-460.0,0.00019452,2]
[368003352,1750990241090,-598.63,0.00019452,2]
[368003353,1750990241101,-460.0,0.00019452,2]
[368003354,1750990241112,-460.0,0.00019452,2]
[368003355,1750990241123,-460.0,0.00019452,2]
[368003356,1750990241341,-460.0,0.00019452,2]
[368003357,1750990241353,-460.0,0.00019452,2]
[368003358,1750990241364,-460.0,0.00019452,2]
[368003359,1750990241376,-460.0,0.00019452,2]
[368003360,1750990241387,-460.0,0.00019452,2]
[368003361,1750990241398,-464.5455207,0.00019452,2]
[368003362,1750990241409,-460.0,0.00019452,2]
[368003363,1750990241420,-574.16971336,0.00019452,2]
[368003364,1750990241431,-462.57619362,0.00019452,2]
[368003365,1750990241441,-460.0,0.00019452,2]
[368003366,1750990241450,-460.0,0.00019452,2]
[368003367,1750990241461,-460.0,0.00019452,2]
[368003368,1750990241471,-460.0,0.00019452,2]
[368003369,1750990241480,-460.0,0.00019452,2]
[368003370,1750990241489,-463.28717236,0.00019452,2]
[368003371,1750990241499,-460.0,0.00019452,2]
[368003372,1750990241508,-206.50396715,0.00019452,2]
[368003373,1750990241517,-433.82648447,0.00019452,2]
[368003374,1750990241527,-460.0,0.00019452,2]
[368003375,1750990241536,-460.0,0.00019452,2]
[368003376,1750990241546,-462.96397383,0.00019452,2]
[368003377,1750990241555,-460.0,0.00019452,2]
[368003378,1750990241565,-460.0,0.00019452,2]
[368003379,1750990241576,-460.0,0.00019452,2]
[368003380,1750990241585,-476.96,0.00019452,2]
[368003381,1750990241594,-463.58995277,0.00019452,2]
[368003382,1750990241604,-460.0,0.00019452,2]
[368003383,1750990241614,-460.0,0.00019452,2]
[368003384,1750990241624,-505.25302733,0.00019452,2]
[368003385,1750990241634,-648.92,0.00019452,2]
[368003386,1750990241643,-460.0,0.00019452,2]
[368003387,1750990241652,-555.82580844,0.00019452,2]
[368003388,1750990241662,-460.0,0.00019452,2]
[368003389,1750990241671,-503.97453082,0.00019452,2]
[368003390,1750990241910,-461.41138594,0.00019452,2]
[368003391,1750990241923,-460.0,0.00019452,2]
[368003392,1750990241932,-855.66,0.00019452,2]
[368003393,1750990241942,-460.0,0.00019452,2]
[368003394,1750990241951,-460.0,0.00019452,2]
[368003395,1750990241960,-460.0,0.00019452,2]
[368003396,1750990241970,-460.0,0.00019452,2]
[368003397,1750990241981,-460.0,0.00019452,2]
[368003398,1750990241994,-460.0,0.00019452,2]
[368003399,1750990242003,-460.0,0.00019452,2]
[368003400,1750990242012,-460.0,0.00019452,2]
[368003401,1750990242021,-460.0,0.00019452,2]
[368003402,1750990242032,-460.0,0.00019452,2]
[368003403,1750990242041,-460.0,0.00019452,2]
[368003404,1750990242051,-460.0,0.00019452,2]
[368003405,1750990242063,-460.18326395,0.00019452,2]
[368003406,1750990242073,-460.0,0.00019452,2]
[368003407,1750990242082,-460.0,0.00019452,2]
[368003408,1750990242091,-460.0,0.00019452,2]
[368003409,1750990242100,-460.0,0.00019452,2]
[368003410,1750990242110,-500.0,0.00019452,2]
[368003411,1750990242119,-833.92,0.00019452,2]
[368003412,1750990242129,-460.0,0.00019452,2]
[368003413,1750990242138,-460.0,0.00019452,2]
[368003414,1750990242147,-468.86,0.00019452,2]
[368003415,1750990242157,-460.0,0.00019452,2]
[368003416,1750990242166,-1937.95,0.00019452,2]
[368003417,1750990242175,-460.0,0.00019452,2]
[368003418,1750990242185,-461.60855651,0.00019452,2]
[368003419,1750990242195,-510.45,0.00019452,2]
[368003420,1750990242205,-4160.84,0.00019452,2]
[368003421,1750990242215,-666.48,0.00019452,2]
[368003422,1750990242225,-464.7356073,0.00019452,2]
[368003423,1750990242234,-460.0,0.00019452,2]
[368003424,1750990242244,-460.0,0.00019452,2]
[368003425,1750990242254,-460.0,0.00019452,2]
[368003426,1750990242264,-585.93,0.00019452,2]
[368003427,1750990242273,-460.0,0.00019452,2]
[368003428,1750990242283,-460.0,0.00019452,2]
[368003429,1750990242293,-810.26,0.00019452,2]
[368003430,1750990242302,-460.0,0.00019452,2]
[368003431,1750990242312,-433.08403681,0.00019452,2]
[368003432,1750990242322,-664.72,0.00019452,2]
[368003433,1750990242332,-460.0,0.00019452,2]
[368003434,1750990242342,-709.05,0.00019452,2]
[368003435,1750990242352,-460.0,0.00019452,2]
[368003436,1750990242362,-1068.07,0.00019452,2]
[368003437,1750990242372,-460.0,0.00019452,2]
[368003438,1750990242383,-690.78,0.00019452,2]
[368003439,1750990242393,-460.0,0.00019452,2]
[368003440,1750990242403,-460.0,0.00019452,2]
[368003441,1750990242412,-460.0,0.00019452,2]
[368003442,1750990242423,-460.0,0.00019452,2]
[368003443,1750990242432,-460.0,0.00019452,2]
[368003444,1750990242442,-400.80737071,0.00019452,2]
[368003445,1750990242451,-879.35,0.00019452,2]
[368003446,1750990242461,-460.0,0.00019452,2]
[368003447,1750990242471,-665.58,0.00019452,2]
[368003448,1750990242481,-2063.54,0.00019452,2]
[368003449,1750990242491,-460.0,0.00019452,2]
[368003450,1750990242501,-478.81,0.00019452,2]
[368003451,1750990242511,-471.39339694,0.00019452,2]
[368003452,1750990242520,-460.0,0.00019452,2]
[368003453,1750990242529,-460.0,0.00019452,2]
[368003454,1750990242539,-460.0,0.00019452,2]
[368003455,1750990242548,-709.13,0.00019452,2]
[368003456,1750990242559,-462.42414869,0.00019452,2]
[368003457,1750990242568,-460.0,0.00019452,2]
[368003458,1750990242578,-460.0,0.00019452,2]
[368003459,1750990242588,-460.0,0.00019452,2]
[368003460,1750990242598,-460.0,0.00019452,2]
[368003461,1750990242609,-460.0,0.00019452,2]
[368003462,1750990242619,-497.95,0.00019452,2]
[368003463,1750990242628,-2766.63,0.00019452,2]
[368003464,1750990242638,-460.0,0.00019452,2]
[368003465,1750990242648,-467.19052709,0.00019452,2]
[368003466,1750990242657,-460.0,0.00019452,2]
[368003467,1750990242667,-416.64417757,0.00019452,2]
[368003468,1750990242677,-668.1,0.00019452,2]
[368003469,1750990242687,-460.0,0.00019452,2]
[368003470,1750990242697,-500.26,0.00019452,2]
[368003471,1750990242707,-460.0,0.00019452,2]
[368003472,1750990242717,-463.25149699,0.00019452,2]
[368003473,1750990242727,-460.0,0.00019452,2]
[368003474,1750990242737,-460.0,0.00019452,2]
[368003475,1750990242747,-462.05719421,0.00019452,2]
[368003476,1750990242758,-1211.16,0.00019452,2]
[368003477,1750990242768,-624.51,0.00019452,2]
[368003478,1750990242778,-460.0,0.00019452,2]
[368003479,1750990242788,-460.0,0.00019452,2]
[368003480,1750990242797,-460.0,0.00019452,2]
[368003481,1750990242808,-460.0,0.00019452,2]
[368003482,1750990242818,-460.0,0.00019452,2]
[368003483,1750990242828,-460.0,0.00019452,2]
[368003484,1750990242838,-460.0,0.00019452,2]
[368003485,1750990242847,-1439.35,0.00019452,2]
[368003486,1750990242857,-1623.76,0.00019452,2]
[368003487,1750990242867,-460.0,0.00019452,2]
[368003488,1750990242877,-460.0,0.00019452,2]
[368003489,1750990242886,-504.07457652,0.00019452,2]
[368003490,1750990242896,-770.47,0.00019452,2]
[368003491,1750990242906,-460.0,0.00019452,2]
[368003492,1750990242915,-460.0,0.00019452,2]
[368003493,1750990242924,-460.0,0.00019452,2]
[368003494,1750990242934,-469.85070462,0.00019452,2]
[368003495,1750990242943,-588.12711238,0.00019452,2]
[368003496,1750990242953,-577.78,0.00019452,2]
[368003497,1750990242963,-851.92,0.00019452,2]
[368003498,1750990242972,-444.2555391,0.00019452,2]
[368003499,1750990242983,-3159.43,0.00019452,2]
[368003500,1750990242993,-460.0,0.00019452,2]
[368003501,1750990243002,-571.76,0.00019452,2]
[368003504,1750990243012,-460.0,0.00019452,2]
[368003506,1750990243021,-816.91,0.00019452,2]
[368003507,1750990243031,-460.0,0.00019452,2]
[368003508,1750990243041,-460.0,0.00019452,2]
[368003509,1750990243050,-460.0,0.00019452,2]
[368003510,1750990243059,-431.58983597,0.00019452,2]
[368003511,1750990243069,-198.8,0.00019452,2]
[368003512,1750990243078,-460.0,0.00019452,2]
[368003513,1750990243088,-2249.21,0.00019452,2]
[368003515,1750990243098,-460.0,0.00019452,2]
[368003518,1750990243107,-460.0,0.00019452,2]
[368003521,1750990243117,-460.0,0.00019452,2]
[368003522,1750990243126,-527.59,0.00019452,2]
[368003523,1750990243135,-460.0,0.00019452,2]
[368003524,1750990243145,-609.62,0.00019452,2]
[368003525,1750990243154,-460.0,0.00019452,2]
[368003526,1750990243164,-1901.38,0.00019452,2]
[368003527,1750990243173,-460.0,0.00019452,2]
[368003528,1750990243182,-460.0,0.00019452,2]
[368003529,1750990243192,-460.0,0.00019452,2]
[368003530,1750990243201,-804.08,0.00019452,2]
[368003531,1750990243211,-460.0,0.00019452,2]
[368003532,1750990243220,-460.0,0.00019452,2]
[368003533,1750990243230,-460.0,0.00019452,2]
[368003534,1750990243239,-460.0,0.00019452,2]
[368003535,1750990243248,-460.0,0.00019452,2]
[368003536,1750990243258,-454.54550246,0.00019452,2]
[368003537,1750990243267,-2275.33,0.00019452,2]
[368003538,1750990243276,-460.0,0.00019452,2]
[368003539,1750990243285,-460.0,0.00019452,2]
[368003540,1750990243295,-2499.19,0.00019452,2]
[368003541,1750990243305,-460.0,0.00019452,2]
[368003542,1750990243314,-460.0,0.00019452,2]
[368003543,1750990243323,-460.0,0.00019452,2]
[368003544,1750990243332,-988.74,0.00019452,2]
[368003545,1750990243342,-460.0,0.00019452,2]
[368003546,1750990243351,-460.0,0.00019452,2]
[368003547,1750990243361,-831.38,0.00019452,2]
[368003548,1750990243370,-460.0,0.00019452,2]
[368003549,1750990243380,-981.72583137,0.00019495,2]
[368003550,1750990243389,-931.11,0.00019528,2]
[368003551,1750990243398,-931.11,0.0001953,2]
[368003552,1750990243408,-931.11,0.0001953,2]
[368003553,1750990243417,-460.0,0.00019531,2]
[368003554,1750990243426,-461.63382994,0.00019531,2]
[368003555,1750990243436,-460.7442407,0.00019531,2]
[368003556,1750990243445,-441.39793937,0.00019531,2]
[368003557,1750990243454,-460.0,0.00019531,2]
[368003558,1750990243463,-340.40844677,0.00019531,2]
[368003559,1750990243472,-469.80510097,0.00019531,2]
[368003560,1750990243482,-461.06008345,0.00019531,2]
[368003561,1750990243492,-461.36888309,0.00019531,2]
[368003562,1750990243501,-440.99056269,0.00019531,2]
[368003563,1750990243510,-441.16405613,0.00019531,2]
[368003564,1750990243520,-375.38565295,0.00019531,2]
[368003565,1750990243530,-460.0,0.00019531,2]
[368003566,1750990243539,-460.44904245,0.00019531,2]
[368003567,1750990243548,-168.0,0.00019634,2]
[368003568,1750990243558,-199.22331557,0.00019637,2]
[368003569,1750990243567,-500.0,0.00019637,2]
[368003570,1750990243576,-500.0,0.00019637,2]
[368003571,1750990243587,-204.38876376,0.00019637,2]
[368003572,1750990243596,-151.0,0.00019637,2]
[368003573,1750990243605,-151.0,0.00019637,2]
[368003574,1750990243614,-200.41776214,0.00019637,2]
[368003575,1750990243625,-230.47988995,0.00019637,2]
[368003576,1750990243634,-176.03797552,0.00019637,2]
[368003577,1750990243644,-500.0,0.00019637,2]
[368003578,1750990243655,-151.0,0.00019637,2]
[368003579,1750990243664,-501.85992699,0.00019664,2]
[368003580,1750990243673,-525.68513638,0.00019664,2]
[368003581,1750990243683,-200.87249709,0.00019664,2]
[368003582,1750990243692,-151.0,0.00019664,2]
[368003583,1750990243701,-502.19864832,0.00019664,2]
[368003584,1750990243710,-153.33909828,0.00019664,2]
[368003585,1750990243719,-257.26877156,0.00019692,2]
[368003586,1750990243729,-460.0,0.00019709,2]
[368003587,1750990243738,-460.0,0.00019709,2]
[368003588,1750990243747,-460.0,0.00019709,2]
[368003589,1750990243756,-487.91,0.00019709,2]
[368003590,1750990243766,-460.0,0.00019709,2]
[368003591,1750990243774,-460.0,0.00019709,2]
[368003592,1750990243784,-174.53164084,0.00019709,2]
[368003593,1750990243793,-460.0,0.00019709,2]
[368003594,1750990243801,-460.0,0.00019709,2]
[368003595,1750990243810,-527.49199378,0.00019709,2]
[368003596,1750990243819,-474.53,0.00019709,2]
[368003597,1750990243831,-349.3893349,0.00019715,2]
[368003598,1750990243840,-1000.0,0.00019721,2]
[368003599,1750990243849,-931.11,0.00019724,2]
[368003600,1750990243859,-500.0,0.00019725,2]
[368003601,1750990243868,-170.85237125,0.00019725,2]
[368003602,1750990243877,-460.0,0.00019725,2]
[368003603,1750990243887,-428.22682444,0.00019725,2]
[368003604,1750990243896,-372.02718125,0.00019725,2]
[368003605,1750990243906,-407.22467121,0.00019725,2]
[368003606,1750990243916,-460.0,0.00019725,2]
[368003607,1750990243925,-460.0,0.00019725,2]
[368003608,1750990243935,-460.0,0.00019725,2]
[368003609,1750990243945,-569.23,0.00019725,2]
[368003610,1750990243954,-543.97,0.00019725,2]
[368003611,1750990243963,-931.11,0.00019725,2]
[368003612,1750990243972,-931.11,0.00019725,2]
[368003613,1750990243982,-1476.7,0.00019725,2]
[368003614,1750990243994,-151.0,0.00019725,2]
[368003615,1750990244003,-1539.19,0.00019725,2]
[368003616,1750990244013,-460.0,0.00019725,2]
[368003617,1750990244023,-151.0,0.00019725,2]
[368003618,1750990244033,-201.459262,0.00019725,2]
[368003619,1750990244043,-151.293602,0.00019725,2]
[368003620,1750990244053,-4068.66,0.00019725,2]
[368003621,1750990244062,-152.369318,0.00019725,2]
[368003622,1750990244072,-201.459262,0.00019725,2]
[368003623,1750990244082,-460.0,0.00019725,2]
[368003624,1750990244091,-1056.28,0.00019725,2]
[368003625,1750990244100,-1359.78,0.00019725,2]
[368003626,1750990244110,-525.87,0.00019725,2]
[368003627,1750990244119,-460.0,0.00019725,2]
[368003628,1750990244129,-151.0,0.00019725,2]
[368003629,1750990244138,-151.0,0.00019725,2]
[368003630,1750990244147,-151.0,0.00019725,2]
[368003631,1750990244156,-151.0,0.00019725,2]
[368003632,1750990244166,-151.0,0.00019725,2]
[368003633,1750990244175,-500.0,0.00019725,2]
[368003634,1750990244184,-500.0,0.00019725,2]
[368003635,1750990244194,-155.20098574,0.00019725,2]
[368003636,1750990244203,-500.0,0.00019725,2]
[368003637,1750990244212,-500.0,0.00019725,2]
[368003638,1750990244221,-500.0,0.00019725,2]
[368003639,1750990244231,-407.82894872,0.00019725,2]
[368003640,1750990244240,-500.0,0.00019725,2]
[368003641,1750990244249,-500.0,0.00019725,2]
[368003642,1750990244258,-500.0,0.00019725,2]
[368003643,1750990244268,-500.0,0.00019725,2]
[368003644,1750990244277,-151.0,0.00019725,2]
[368003645,1750990244286,-587.74906325,0.00019726,2]
[368003646,1750990244295,-460.0,0.00019726,2]
[368003647,1750990244305,-481.51,0.00019726,2]
[368003648,1750990244314,-460.0,0.00019726,2]
[368003649,1750990244323,-515.64,0.00019726,2]
[368003650,1750990244332,-460.0,0.00019726,2]
[368003651,1750990244341,-460.0,0.00019726,2]
[368003652,1750990244350,-460.0,0.00019726,2]
[368003653,1750990244359,-460.0,0.00019726,2]
[368003654,1750990244369,-499.09033635,0.00019726,2]
[368003655,1750990244379,-460.0,0.00019726,2]
[368003656,1750990244388,-460.0,0.00019726,2]
[368003657,1750990244397,-460.0,0.00019726,2]
[368003658,1750990244407,-460.0,0.00019726,2]
[368003659,1750990244417,-460.0,0.00019726,2]
[368003660,1750990244426,-460.0,0.00019726,2]
[368003661,1750990244435,-676.69,0.00019726,2]
[368003662,1750990244445,-619.16,0.00019726,2]
[368003663,1750990244454,-460.0,0.00019726,2]
[368003664,1750990244463,-460.0,0.00019726,2]
[368003665,1750990244472,-296.48581044,0.00019726,2]
[368003666,1750990244482,-505.43,0.00019726,2]
[368003667,1750990244491,-460.0,0.00019726,2]
[368003668,1750990244500,-496.88,0.00019726,2]
[368003669,1750990244509,-460.0,0.00019726,2]
[368003670,1750990244519,-460.0,0.00019726,2]
[368003671,1750990244529,-701.54,0.00019726,2]
[368003672,1750990244538,-460.0,0.00019726,2]
[368003673,1750990244547,-460.0,0.00019726,2]
[368003674,1750990244556,-460.0,0.00019726,2]
[368003675,1750990244566,-460.0,0.00019726,2]
[368003676,1750990244576,-460.0,0.00019726,2]
[368003677,1750990244585,-460.0,0.00019726,2]
[368003678,1750990244595,-460.0,0.00019726,2]
[368003679,1750990244604,-460.0,0.00019726,2]
[368003680,1750990244614,-609.9,0.00019726,2]
[368003681,1750990244623,-418.98770392,0.00019726,2]
[368003682,1750990244633,-463.18580949,0.00019726,2]
[368003683,1750990244643,-460.0,0.00019726,2]
[368003684,1750990244652,-460.0,0.00019726,2]
[368003685,1750990244661,-598.63,0.00019726,2]
[368003686,1750990244671,-460.0,0.00019726,2]
[368003687,1750990244680,-460.0,0.00019726,2]
[368003688,1750990244690,-460.0,0.00019726,2]
[368003689,1750990244699,-460.0,0.00019726,2]
[368003690,1750990244708,-460.0,0.00019726,2]
[368003691,1750990244718,-460.0,0.00019726,2]
[368003692,1750990244728,-460.0,0.00019726,2]
[368003693,1750990244737,-420.86281339,0.00019726,2]
[368003694,1750990244747,-460.0,0.00019726,2]
[368003695,1750990244757,-245.78948182,0.00019726,2]
[368003696,1750990244767,-460.0,0.00019726,2]
[368003697,1750990244777,-460.0,0.00019726,2]
[368003698,1750990244787,-461.10927771,0.00019726,2]
[368003699,1750990244797,-460.0,0.00019726,2]
[368003700,1750990244807,-476.96,0.00019726,2]
[368003701,1750990244816,-460.0,0.00019726,2]
[368003702,1750990244825,-648.92,0.00019726,2]
[368003703,1750990244835,-460.0,0.00019726,2]
[368003704,1750990244845,-460.0,0.00019726,2]
[368003705,1750990244854,-460.0,0.00019726,2]
[368003706,1750990244864,-855.66,0.00019726,2]
[368003707,1750990244874,-460.0,0.00019726,2]
[368003708,1750990244883,-460.0,0.00019726,2]
[368003709,1750990244892,-460.0,0.00019726,2]
[368003710,1750990244902,-314.26246858,0.00019726,2]
[368003711,1750990244912,-460.0,0.00019726,2]
[368003712,1750990244920,-460.0,0.00019726,2]
[368003713,1750990245034,-460.0,0.00019726,2]
[368003714,1750990245065,-460.0,0.00019726,2]
[368003715,1750990245075,-360.0,0.00019726,2]
[368003716,1750990245085,-460.0,0.00019726,2]
[368003717,1750990245095,-460.0,0.00019726,2]
[368003718,1750990245104,-460.0,0.00019726,2]
[368003719,1750990245114,-552.52605129,0.00019726,2]
[368003720,1750990245124,-833.92,0.00019726,2]
[368003721,1750990245134,-543.69160738,0.00019726,2]
[368003722,1750990245143,-460.0,0.00019726,2]
[368003723,1750990245153,-460.0,0.00019726,2]
[368003724,1750990245162,-468.86,0.00019726,2]
[368003725,1750990245172,-1937.95,0.00019726,2]
[368003726,1750990245181,-460.0,0.00019726,2]
[368003727,1750990245191,-510.45,0.00019726,2]
[368003728,1750990245200,-4160.84,0.00019726,2]
[368003729,1750990245210,-666.48,0.00019726,2]
[368003730,1750990245219,-236.81834239,0.00019726,2]
[368003731,1750990245228,-460.0,0.00019726,2]
[368003732,1750990245238,-585.93,0.00019726,2]
[368003733,1750990245247,-460.0,0.00019726,2]
[368003734,1750990245256,-460.0,0.00019726,2]
[368003735,1750990245265,-810.26,0.00019726,2]
[368003736,1750990245275,-460.0,0.00019726,2]
[368003737,1750990245284,-664.72,0.00019726,2]
[368003738,1750990245293,-709.05,0.00019726,2]
[368003739,1750990245303,-1068.07,0.00019726,2]
[368003740,1750990245312,-690.78,0.00019726,2]
[368003741,1750990245321,-460.0,0.00019726,2]
[368003742,1750990245331,-460.0,0.00019726,2]
[368003743,1750990245340,-285.9401051,0.00019726,2]
[368003744,1750990245350,-460.0,0.00019726,2]
[368003745,1750990245359,-879.35,0.00019726,2]
[368003746,1750990245369,-502.96695621,0.00019726,2]